[Event "*** Titled Tuesday Blitz"]
[Site "Chess.com"]
[Date "2021.03.09"]
[Round "2"]
[White "SirStrateg"]
[Black "katchesskat"]
[Result "0-1"]
[WhiteElo "2597"]
[BlackElo "2313"]
[TimeControl "180+1"]
[EndTime "10:19:36 PST"]
[Termination "katchesskat won by resignation"]

1. d4 {[%clk 0:03:00.9]} 1... c5 {[%clk 0:02:59.5]} 2. c3 {[%clk 0:03:00]} 2...
e6 {[%clk 0:02:59]} 3. Nf3 {[%clk 0:02:58.8]} 3... Nf6 {[%clk 0:02:58.9]} 4. Bf4
{[%clk 0:02:58.9]} 4... a6 {[%clk 0:02:58.2]} 5. e3 {[%clk 0:02:59.1]} 5... b5
{[%clk 0:02:57]} 6. Nbd2 {[%clk 0:02:58.7]} 6... Bb7 {[%clk 0:02:57.2]} 7. Bd3
{[%clk 0:02:58.2]} 7... d6 {[%clk 0:02:55.8]} 8. O-O {[%clk 0:02:58.2]} 8...
Nbd7 {[%clk 0:02:54.5]} 9. Qe2 {[%clk 0:02:57.1]} 9... Qc7 {[%clk 0:02:53.3]}
10. h3 {[%clk 0:02:51.2]} 10... h6 {[%clk 0:02:51.2]} 11. Bh2 {[%clk 0:02:51.3]}
11... Be7 {[%clk 0:02:48.4]} 12. e4 {[%clk 0:02:51.6]} 12... c4 {[%clk
0:02:48.6]} 13. Bc2 {[%clk 0:02:51.4]} 13... e5 {[%clk 0:02:48.5]} 14. a4 {[%clk
0:02:49.3]} 14... O-O {[%clk 0:02:46.4]} 15. Ra2 {[%clk 0:02:48.6]} 15... Rfe8
{[%clk 0:02:37.3]} 16. Rfa1 {[%clk 0:02:48.5]} 16... Rab8 {[%clk 0:02:36.6]} 17.
Qe3 {[%clk 0:02:44.5]} 17... Nh7 {[%clk 0:02:34.7]} 18. axb5 {[%clk 0:02:41.8]}
18... axb5 {[%clk 0:02:34.4]} 19. b3 {[%clk 0:02:42.5]} 19... cxb3 {[%clk
0:02:33.1]} 20. Bxb3 {[%clk 0:02:42.2]} 20... Rbc8 {[%clk 0:02:31.4]} 21. Ra7
{[%clk 0:02:32.9]} 21... Qb8 {[%clk 0:02:19.2]} 22. Qd3 {[%clk 0:02:16.1]} 22...
Bf8 {[%clk 0:02:08.8]} 23. Qxb5 {[%clk 0:02:10.9]} 23... Bc6 {[%clk 0:01:55.9]}
24. Qd3 {[%clk 0:01:50.3]} 24... Bb5 {[%clk 0:01:31.6]} 25. Bc4 {[%clk 0:01:42]}
25... Rxc4 {[%clk 0:01:15.4]} 26. Nxc4 {[%clk 0:01:42.9]} 26... Nb6 {[%clk
0:01:14.8]} 27. Nfd2 {[%clk 0:01:31.4]} 27... Nxc4 {[%clk 0:01:04.3]} 28. Nxc4
{[%clk 0:01:31.1]} 28... Rc8 {[%clk 0:01:03.1]} 29. R7a4 {[%clk 0:01:15.1]}
29... exd4 {[%clk 0:00:32.9]} 30. cxd4 {[%clk 0:01:11]} 30... Bxa4 {[%clk
0:00:23.3]} 31. Rxa4 {[%clk 0:01:09.5]} 31... Qb5 {[%clk 0:00:22.5]} 32. Qc2
{[%clk 0:00:48.1]} 32... Nf6 {[%clk 0:00:18.6]} 33. f3 {[%clk 0:00:42.9]} 33...
d5 {[%clk 0:00:17.2]} 34. exd5 {[%clk 0:00:43.1]} 34... Nxd5 {[%clk 0:00:17.2]}
35. Ra5 {[%clk 0:00:40.3]} 35... Qxa5 {[%clk 0:00:12.5]} 36. Nxa5 {[%clk
0:00:40]} 36... Rxc2 {[%clk 0:00:13.4]} 37. Be5 {[%clk 0:00:32.7]} 37... Ne3
{[%clk 0:00:13]} 38. g4 {[%clk 0:00:33]} 38... f6 {[%clk 0:00:13.2]} 39. Bf4
{[%clk 0:00:32.7]} 39... Ng2 {[%clk 0:00:11.1]} 40. Bg3 {[%clk 0:00:30.1]} 40...
Ne3 {[%clk 0:00:10.2]} 41. Nb3 {[%clk 0:00:26.7]} 41... Nd5 {[%clk 0:00:09.4]}
42. h4 {[%clk 0:00:19.5]} 42... Rb2 {[%clk 0:00:08.5]} 43. Nc5 {[%clk
0:00:19.3]} 43... Bxc5 {[%clk 0:00:08.7]} 44. dxc5 {[%clk 0:00:19.9]} 44... Rc2
{[%clk 0:00:09.5]} 45. Bd6 {[%clk 0:00:20.1]} 45... Kf7 {[%clk 0:00:09.8]} 46.
Kf1 {[%clk 0:00:19.7]} 46... g5 {[%clk 0:00:09.8]} 47. hxg5 {[%clk 0:00:19.8]}
47... hxg5 {[%clk 0:00:10.7]} 48. Ke1 {[%clk 0:00:20.3]} 48... Ke6 {[%clk
0:00:11]} 49. Kd1 {[%clk 0:00:20.8]} 49... Rf2 {[%clk 0:00:10.8]} 50. Bg3 {[%clk
0:00:17.9]} 50... Rxf3 {[%clk 0:00:10.6]} 51. c6 {[%clk 0:00:18.5]} 51... Rxg3
{[%clk 0:00:10]} 52. c7 {[%clk 0:00:19.1]} 52... Nxc7 {[%clk 0:00:09.7]} 0-1

[Event "*** Titled Tuesday Blitz"]
[Site "Chess.com"]
[Date "2021.03.09"]
[Round "2"]
[White "Trankuilizer"]
[Black "kuli4ik"]
[Result "1/2-1/2"]
[WhiteElo "2577"]
[BlackElo "2903"]
[TimeControl "180+1"]
[EndTime "10:19:37 PST"]
[Termination "Game drawn by repetition"]

1. e4 {[%clk 0:03:00.9]} 1... Nf6 {[%clk 0:02:58.3]} 2. e5 {[%clk 0:02:57.9]}
2... Nd5 {[%clk 0:02:58.4]} 3. d4 {[%clk 0:02:58.8]} 3... d6 {[%clk 0:02:58.3]}
4. exd6 {[%clk 0:02:58.9]} 4... exd6 {[%clk 0:02:58.1]} 5. c4 {[%clk 0:02:59.8]}
5... Nf6 {[%clk 0:02:58.2]} 6. Nc3 {[%clk 0:03:00.1]} 6... g6 {[%clk 0:02:58.3]}
7. Nf3 {[%clk 0:02:59.8]} 7... Bg7 {[%clk 0:02:58.6]} 8. Be2 {[%clk 0:02:59.9]}
8... O-O {[%clk 0:02:58.8]} 9. O-O {[%clk 0:03:00.1]} 9... Re8 {[%clk
0:02:58.9]} 10. h3 {[%clk 0:03:01]} 10... Nc6 {[%clk 0:02:57]} 11. d5 {[%clk
0:02:58.8]} 11... Ne7 {[%clk 0:02:54.7]} 12. Bf4 {[%clk 0:02:50.6]} 12... Bd7
{[%clk 0:02:52.4]} 13. Qd2 {[%clk 0:02:50.5]} 13... Nf5 {[%clk 0:02:52.5]} 14.
Rfe1 {[%clk 0:02:50.6]} 14... a6 {[%clk 0:02:51.8]} 15. Bf1 {[%clk 0:02:50.7]}
15... h5 {[%clk 0:02:46.9]} 16. Bg5 {[%clk 0:02:49.9]} 16... Rxe1 {[%clk
0:02:43.9]} 17. Rxe1 {[%clk 0:02:49.2]} 17... Qf8 {[%clk 0:02:44.4]} 18. Bd3
{[%clk 0:02:27.5]} 18... Re8 {[%clk 0:02:32.8]} 19. b3 {[%clk 0:02:25.3]} 19...
Nh7 {[%clk 0:02:28.6]} 20. Bf4 {[%clk 0:02:23.1]} 20... Rxe1+ {[%clk 0:02:27.7]}
21. Qxe1 {[%clk 0:02:24]} 21... Qe7 {[%clk 0:02:27.4]} 22. Qxe7 {[%clk 0:02:21]}
22... Nxe7 {[%clk 0:02:28.3]} 23. Ne2 {[%clk 0:02:19.2]} 23... Nf8 {[%clk
0:02:20.2]} 24. Kf1 {[%clk 0:02:17.3]} 24... f6 {[%clk 0:02:20.5]} 25. h4 {[%clk
0:02:13.6]} 25... Kf7 {[%clk 0:02:15.2]} 26. g3 {[%clk 0:02:12.9]} 26... Ng8
{[%clk 0:02:11.9]} 27. Ke1 {[%clk 0:02:12.7]} 27... Bh6 {[%clk 0:02:12.3]} 28.
Kd2 {[%clk 0:02:11.1]} 28... Bxf4+ {[%clk 0:02:06.8]} 29. Nxf4 {[%clk 0:02:12]}
29... Ne7 {[%clk 0:02:06.4]} 30. b4 {[%clk 0:02:04.5]} 30... Bf5 {[%clk
0:01:59.3]} 31. Bxf5 {[%clk 0:01:57.5]} 31... Nxf5 {[%clk 0:02:00.2]} 32. Kd3
{[%clk 0:01:57.6]} 32... Nh6 {[%clk 0:02:00.1]} 33. Nd4 {[%clk 0:01:55.8]} 33...
Ng4 {[%clk 0:01:59.7]} 34. f3 {[%clk 0:01:50.3]} 34... Ne5+ {[%clk 0:01:59.8]}
35. Kc3 {[%clk 0:01:50.7]} 35... Ke7 {[%clk 0:01:57.3]} 36. a4 {[%clk
0:01:44.5]} 36... Kd7 {[%clk 0:01:56.2]} 37. b5 {[%clk 0:01:42.3]} 37... a5
{[%clk 0:01:51.2]} 38. Nfe2 {[%clk 0:01:42.1]} 38... Ke7 {[%clk 0:01:46.5]} 39.
f4 {[%clk 0:01:41.9]} 39... Ned7 {[%clk 0:01:46.1]} 40. Nb3 {[%clk 0:01:40.2]}
40... b6 {[%clk 0:01:45.7]} 41. Ned4 {[%clk 0:01:37.7]} 41... f5 {[%clk
0:01:39.1]} 42. Nc6+ {[%clk 0:01:28.8]} 42... Ke8 {[%clk 0:01:39]} 43. Ncd4
{[%clk 0:01:27]} 43... Nf6 {[%clk 0:01:38.2]} 44. Nd2 {[%clk 0:01:25.5]} 44...
Kd7 {[%clk 0:01:31.6]} 45. Kd3 {[%clk 0:01:24.9]} 45... Ng4 {[%clk 0:01:29]} 46.
Ke2 {[%clk 0:01:17.6]} 46... Kc8 {[%clk 0:01:22]} 47. N2f3 {[%clk 0:01:12.5]}
47... Nf6 {[%clk 0:01:17.8]} 48. Ng5 {[%clk 0:01:12.1]} 48... Kd7 {[%clk
0:01:16.9]} 49. Kf3 {[%clk 0:01:09.8]} 49... Ke7 {[%clk 0:01:17.2]} 50. Ke3
{[%clk 0:01:09.1]} 50... Ng4+ {[%clk 0:01:10.2]} 51. Ke2 {[%clk 0:01:07.2]}
51... Nf6 {[%clk 0:01:10.3]} 52. Ke3 {[%clk 0:01:06.7]} 52... Ne8 {[%clk
0:01:10.6]} 53. Nc6+ {[%clk 0:00:57.6]} 53... Kf6 {[%clk 0:01:03.7]} 54. Nd4
{[%clk 0:00:58.5]} 54... Nd7 {[%clk 0:01:02.5]} 55. Nde6 {[%clk 0:00:56.5]}
55... Ke7 {[%clk 0:00:59.6]} 56. Kd3 {[%clk 0:00:48]} 56... Ndf6 {[%clk
0:00:59.5]} 57. Ke3 {[%clk 0:00:45.1]} 57... Ng4+ {[%clk 0:00:50.1]} 58. Ke2
{[%clk 0:00:44.3]} 58... Nh6 {[%clk 0:00:39.6]} 59. Ke3 {[%clk 0:00:31.5]} 59...
Ng8 {[%clk 0:00:35.9]} 60. Ke2 {[%clk 0:00:30.4]} 60... Ngf6 {[%clk 0:00:35.3]}
61. Ke3 {[%clk 0:00:30.7]} 61... Nd7 {[%clk 0:00:30.9]} 62. Kd3 {[%clk
0:00:30.1]} 62... Ndf6 {[%clk 0:00:18.1]} 63. Ke3 {[%clk 0:00:29.4]} 1/2-1/2

[Event "*** Titled Tuesday Blitz"]
[Site "Chess.com"]
[Date "2021.03.09"]
[Round "2"]
[White "federicosellitti"]
[Black "eljanov"]
[Result "0-1"]
[WhiteElo "2538"]
[BlackElo "2853"]
[TimeControl "180+1"]
[EndTime "10:19:40 PST"]
[Termination "eljanov won by resignation"]

1. e4 {[%clk 0:03:00.9]} 1... c6 {[%clk 0:02:59.7]} 2. d4 {[%clk 0:03:00.7]}
2... d5 {[%clk 0:03:00.6]} 3. exd5 {[%clk 0:03:01.6]} 3... cxd5 {[%clk
0:03:00.5]} 4. Bd3 {[%clk 0:03:01.2]} 4... Nf6 {[%clk 0:03:01]} 5. Bf4 {[%clk
0:03:01]} 5... Bg4 {[%clk 0:03:00.3]} 6. Nf3 {[%clk 0:03:00.6]} 6... Nc6 {[%clk
0:02:59.9]} 7. c3 {[%clk 0:03:00.8]} 7... e6 {[%clk 0:02:59.6]} 8. O-O {[%clk
0:03:00.8]} 8... Bd6 {[%clk 0:02:59.1]} 9. Bxd6 {[%clk 0:03:01]} 9... Qxd6
{[%clk 0:03:00]} 10. Nbd2 {[%clk 0:03:01.3]} 10... O-O {[%clk 0:03:00.1]} 11.
Qe1 {[%clk 0:03:01.7]} 11... Nd7 {[%clk 0:02:55.1]} 12. h3 {[%clk 0:02:43.1]}
12... Bh5 {[%clk 0:02:52.4]} 13. Qe3 {[%clk 0:02:27.5]} 13... Rab8 {[%clk
0:02:52.7]} 14. Ne5 {[%clk 0:02:28.3]} 14... Ndxe5 {[%clk 0:02:50.8]} 15. dxe5
{[%clk 0:02:27.5]} 15... Qxe5 {[%clk 0:02:49.6]} 16. Qxe5 {[%clk 0:02:08.9]}
16... Nxe5 {[%clk 0:02:49.3]} 17. Bc2 {[%clk 0:02:08.5]} 17... Bg6 {[%clk
0:02:43.6]} 18. Bxg6 {[%clk 0:02:06.3]} 18... hxg6 {[%clk 0:02:44.5]} 19. Rfe1
{[%clk 0:02:06.3]} 19... Nd3 {[%clk 0:02:43.8]} 20. Reb1 {[%clk 0:01:49.9]}
20... b5 {[%clk 0:02:43.4]} 21. a4 {[%clk 0:01:41.9]} 21... b4 {[%clk
0:02:42.9]} 22. c4 {[%clk 0:01:41.8]} 22... Rbc8 {[%clk 0:02:38.6]} 23. cxd5
{[%clk 0:01:40.6]} 23... exd5 {[%clk 0:02:37.9]} 24. Nb3 {[%clk 0:01:31.6]}
24... Rc2 {[%clk 0:02:37.8]} 25. Rd1 {[%clk 0:01:31.8]} 25... Nxf2 {[%clk
0:02:30]} 26. Rxd5 {[%clk 0:01:29.4]} 26... Rxb2 {[%clk 0:02:30.4]} 27. Nd2
{[%clk 0:01:23.4]} 27... Nxh3+ {[%clk 0:02:08.1]} 28. gxh3 {[%clk 0:01:22.4]}
28... Re8 {[%clk 0:02:07.9]} 29. Rf1 {[%clk 0:01:12.4]} 29... f6 {[%clk
0:02:04.7]} 30. Rf2 {[%clk 0:00:57.9]} 30... Re3 {[%clk 0:01:59.9]} 31. Kg2
{[%clk 0:00:35.7]} 31... b3 {[%clk 0:01:45]} 32. Rb5 {[%clk 0:00:33.7]} 32...
Rc3 {[%clk 0:01:42.5]} 33. a5 {[%clk 0:00:29.2]} 33... f5 {[%clk 0:01:38.3]} 34.
Rb8+ {[%clk 0:00:23.4]} 34... Kh7 {[%clk 0:01:38.3]} 35. Nf3 {[%clk 0:00:21.6]}
35... Rxf2+ {[%clk 0:01:34.4]} 36. Kxf2 {[%clk 0:00:22.5]} 36... Kh6 {[%clk
0:01:33.7]} 37. h4 {[%clk 0:00:22.4]} 37... g5 {[%clk 0:01:26.4]} 38. hxg5+
{[%clk 0:00:22.3]} 38... Kg6 {[%clk 0:01:24.1]} 39. Kg3 {[%clk 0:00:22.8]} 39...
Rc5 {[%clk 0:01:19.5]} 40. Rxb3 {[%clk 0:00:19.4]} 40... Rxa5 {[%clk 0:01:19.6]}
41. Rb4 {[%clk 0:00:19.5]} 41... Rc5 {[%clk 0:01:15.6]} 42. Kf4 {[%clk
0:00:19.2]} 42... a5 {[%clk 0:01:16.1]} 43. Ra4 {[%clk 0:00:17.8]} 43... Kf7
{[%clk 0:01:14.7]} 44. Ne5+ {[%clk 0:00:16.9]} 44... Ke6 {[%clk 0:01:15]} 45.
Nd3 {[%clk 0:00:16.3]} 45... Rb5 {[%clk 0:01:15.5]} 46. Rc4 {[%clk 0:00:13.6]}
46... Rd5 {[%clk 0:01:08]} 47. Rc6+ {[%clk 0:00:12.1]} 47... Kd7 {[%clk
0:01:07.5]} 48. Rc3 {[%clk 0:00:06.7]} 48... Kd6 {[%clk 0:01:07.8]} 49. Nb2
{[%clk 0:00:04.7]} 49... Rb5 {[%clk 0:01:00.1]} 50. Nc4+ {[%clk 0:00:04.2]}
50... Ke6 {[%clk 0:00:59.7]} 51. Ne3 {[%clk 0:00:03.8]} 51... Rb4+ {[%clk
0:00:57.5]} 52. Rc4 {[%clk 0:00:04.4]} 52... Rxc4+ {[%clk 0:00:56.1]} 53. Nxc4
{[%clk 0:00:05.3]} 53... a4 {[%clk 0:00:56]} 54. Na3 {[%clk 0:00:04.3]} 54... g6
{[%clk 0:00:54.9]} 55. Ke3 {[%clk 0:00:03.8]} 55... Kd5 {[%clk 0:00:52.1]} 56.
Kf4 {[%clk 0:00:03.3]} 56... Kd4 {[%clk 0:00:51]} 57. Nb1 {[%clk 0:00:02.5]}
57... Kd3 {[%clk 0:00:50.7]} 58. Ke5 {[%clk 0:00:02.8]} 58... Kc2 {[%clk
0:00:50]} 59. Na3+ {[%clk 0:00:02.5]} 59... Kb3 {[%clk 0:00:50.3]} 60. Nb5
{[%clk 0:00:02.6]} 60... a3 {[%clk 0:00:50.6]} 61. Nxa3 {[%clk 0:00:02.6]} 61...
Kxa3 {[%clk 0:00:51]} 62. Kf6 {[%clk 0:00:03.3]} 62... f4 {[%clk 0:00:51]} 63.
Kxg6 {[%clk 0:00:04.2]} 63... f3 {[%clk 0:00:51.5]} 64. Kh7 {[%clk 0:00:05.1]}
64... f2 {[%clk 0:00:52]} 65. g6 {[%clk 0:00:06]} 65... f1=Q {[%clk 0:00:52.5]}
66. g7 {[%clk 0:00:06.9]} 66... Qh3+ {[%clk 0:00:53]} 67. Kg8 {[%clk 0:00:07.3]}
67... Kb4 {[%clk 0:00:52.4]} 68. Kf8 {[%clk 0:00:07.1]} 68... Qf5+ {[%clk
0:00:52.4]} 69. Ke7 {[%clk 0:00:07.2]} 69... Qg6 {[%clk 0:00:52.5]} 0-1

[Event "*** Titled Tuesday Blitz"]
[Site "Chess.com"]
[Date "2021.03.09"]
[Round "2"]
[White "Durarbayli"]
[Black "erdni1993"]
[Result "0-1"]
[WhiteElo "2677"]
[BlackElo "2502"]
[TimeControl "180+1"]
[EndTime "10:19:40 PST"]
[Termination "erdni1993 won on time"]

1. e4 {[%clk 0:03:00.9]} 1... c5 {[%clk 0:03:00]} 2. Nf3 {[%clk 0:02:59.4]} 2...
e6 {[%clk 0:03:00.5]} 3. d4 {[%clk 0:02:58.3]} 3... cxd4 {[%clk 0:03:01]} 4.
Nxd4 {[%clk 0:02:59.2]} 4... Nc6 {[%clk 0:03:01.4]} 5. Nc3 {[%clk 0:02:58.4]}
5... Qc7 {[%clk 0:03:02]} 6. g3 {[%clk 0:02:58.4]} 6... a6 {[%clk 0:03:00.5]} 7.
Bg2 {[%clk 0:02:56]} 7... d6 {[%clk 0:03:00.6]} 8. O-O {[%clk 0:02:41.3]} 8...
Bd7 {[%clk 0:03:00.4]} 9. Re1 {[%clk 0:02:40.9]} 9... Be7 {[%clk 0:03:01]} 10.
g4 {[%clk 0:02:32.7]} 10... Nxd4 {[%clk 0:02:38.8]} 11. Qxd4 {[%clk 0:02:31.7]}
11... Bf6 {[%clk 0:02:39.2]} 12. Qd3 {[%clk 0:02:28.3]} 12... Ne7 {[%clk
0:02:29.7]} 13. Bd2 {[%clk 0:02:24.1]} 13... Nc6 {[%clk 0:02:23]} 14. g5 {[%clk
0:02:11.9]} 14... Be5 {[%clk 0:02:09.8]} 15. a3 {[%clk 0:01:27.6]} 15... O-O
{[%clk 0:02:06.2]} 16. f4 {[%clk 0:01:25.6]} 16... Bd4+ {[%clk 0:02:05.2]} 17.
Kh1 {[%clk 0:01:25.1]} 17... b5 {[%clk 0:02:02.9]} 18. Rad1 {[%clk 0:01:18.9]}
18... Rad8 {[%clk 0:01:54.9]} 19. f5 {[%clk 0:01:11.2]} 19... Be5 {[%clk
0:01:28.6]} 20. Rf1 {[%clk 0:00:55.5]} 20... Na5 {[%clk 0:01:23.1]} 21. f6
{[%clk 0:00:49.3]} 21... Nc4 {[%clk 0:01:22]} 22. Bc1 {[%clk 0:00:48.6]} 22...
Bc6 {[%clk 0:01:17.7]} 23. Qh3 {[%clk 0:00:32.4]} 23... Qb7 {[%clk 0:01:12.7]}
24. Rde1 {[%clk 0:00:24.3]} 24... a5 {[%clk 0:01:02.9]} 25. Nd1 {[%clk
0:00:24.3]} 25... d5 {[%clk 0:00:53.4]} 26. b3 {[%clk 0:00:23.6]} 26... Nb6
{[%clk 0:00:33.4]} 27. exd5 {[%clk 0:00:22.5]} 27... Rxd5 {[%clk 0:00:33.9]} 28.
Ne3 {[%clk 0:00:17.8]} 28... Bc3 {[%clk 0:00:25.5]} 29. Nxd5 {[%clk 0:00:16.4]}
29... Nxd5 {[%clk 0:00:26.3]} 30. Re4 {[%clk 0:00:12.9]} 30... gxf6 {[%clk
0:00:13.5]} 31. Rh4 {[%clk 0:00:10.3]} 31... fxg5 {[%clk 0:00:13.6]} 32. Rxh7
{[%clk 0:00:09.8]} 32... Nf4 {[%clk 0:00:13.7]} 33. Bxf4 {[%clk 0:00:09.5]}
33... Bxg2+ {[%clk 0:00:14.2]} 34. Qxg2 {[%clk 0:00:05.3]} 34... Qxg2+ {[%clk
0:00:15.1]} 35. Kxg2 {[%clk 0:00:06.2]} 35... Kxh7 {[%clk 0:00:15.6]} 36. Bxg5
{[%clk 0:00:04.7]} 36... Rg8 {[%clk 0:00:15.9]} 37. Rxf7+ {[%clk 0:00:05.3]}
37... Kg6 {[%clk 0:00:15.7]} 38. Rf3 {[%clk 0:00:05.2]} 38... b4 {[%clk
0:00:15.1]} 39. axb4 {[%clk 0:00:04.9]} 39... axb4 {[%clk 0:00:16]} 40. Be3
{[%clk 0:00:04.4]} 40... Rd8 {[%clk 0:00:15.9]} 41. Kf2 {[%clk 0:00:05]} 41...
Rd1 {[%clk 0:00:15.9]} 42. Ke2 {[%clk 0:00:05.6]} 42... Rh1 {[%clk 0:00:15.8]}
43. Rg3+ {[%clk 0:00:06.1]} 43... Kf5 {[%clk 0:00:16.1]} 44. Bg1 {[%clk
0:00:06.8]} 44... e5 {[%clk 0:00:14.4]} 45. Kf3 {[%clk 0:00:05.1]} 45... Bd4
{[%clk 0:00:14.7]} 46. Kg2 {[%clk 0:00:05.4]} 46... Rxg1+ {[%clk 0:00:14.2]} 47.
Kf3 {[%clk 0:00:05.9]} 47... Rxg3+ {[%clk 0:00:14.7]} 48. hxg3 {[%clk
0:00:05.2]} 48... e4+ {[%clk 0:00:15.3]} 49. Ke2 {[%clk 0:00:05.4]} 49... Kg4
{[%clk 0:00:15.8]} 0-1

[Event "*** Titled Tuesday Blitz"]
[Site "Chess.com"]
[Date "2021.03.09"]
[Round "2"]
[White "Kretov_Evgenij"]
[Black "Supernotar"]
[Result "1-0"]
[WhiteElo "2524"]
[BlackElo "2733"]
[TimeControl "180+1"]
[EndTime "10:19:47 PST"]
[Termination "Kretov_Evgenij won by resignation"]

1. d4 {[%clk 0:03:00.9]} 1... d5 {[%clk 0:02:59.4]} 2. c4 {[%clk 0:03:01.1]}
2... dxc4 {[%clk 0:03:00.1]} 3. Nf3 {[%clk 0:03:00.7]} 3... Nf6 {[%clk
0:03:00.4]} 4. e3 {[%clk 0:03:01.1]} 4... e6 {[%clk 0:03:01.1]} 5. Bxc4 {[%clk
0:03:01.6]} 5... a6 {[%clk 0:03:01.8]} 6. O-O {[%clk 0:03:01.9]} 6... b5 {[%clk
0:03:02.1]} 7. Bd3 {[%clk 0:03:01.4]} 7... Bb7 {[%clk 0:03:03]} 8. Nc3 {[%clk
0:03:00.4]} 8... Nbd7 {[%clk 0:03:02.6]} 9. Re1 {[%clk 0:02:59.1]} 9... c5
{[%clk 0:03:02.6]} 10. e4 {[%clk 0:02:55.6]} 10... cxd4 {[%clk 0:03:00.9]} 11.
Nxd4 {[%clk 0:02:54.8]} 11... Be7 {[%clk 0:02:51.9]} 12. e5 {[%clk 0:02:44.8]}
12... Nd5 {[%clk 0:02:51.5]} 13. Qg4 {[%clk 0:02:43.1]} 13... Qb6 {[%clk
0:02:25.5]} 14. Qxg7 {[%clk 0:01:57.3]} 14... O-O-O {[%clk 0:02:24.5]} 15. Nxd5
{[%clk 0:01:40.9]} 15... Bxd5 {[%clk 0:02:25.4]} 16. Qxf7 {[%clk 0:01:37.7]}
16... Qxd4 {[%clk 0:02:13]} 17. Qxe7 {[%clk 0:01:24.9]} 17... Qxd3 {[%clk
0:02:03.2]} 18. Be3 {[%clk 0:01:23.1]} 18... Rhg8 {[%clk 0:01:54.1]} 19. Rac1+
{[%clk 0:01:16.2]} 19... Kb7 {[%clk 0:01:50.3]} 20. Bg5 {[%clk 0:00:52.6]} 20...
h6 {[%clk 0:01:25.4]} 21. Qd6 {[%clk 0:00:46.8]} 21... Bc4 {[%clk 0:00:31.8]}
22. Qxd3 {[%clk 0:00:46.1]} 22... Bxd3 {[%clk 0:00:32.7]} 23. Bxd8 {[%clk
0:00:46.2]} 23... Rxd8 {[%clk 0:00:33.3]} 24. Red1 {[%clk 0:00:45.1]} 24... Be4
{[%clk 0:00:32.7]} 25. Rd6 {[%clk 0:00:41.6]} 25... Bd5 {[%clk 0:00:30.7]} 26.
b3 {[%clk 0:00:37.4]} 26... b4 {[%clk 0:00:29.8]} 27. f4 {[%clk 0:00:36.9]}
27... h5 {[%clk 0:00:29.2]} 28. f5 {[%clk 0:00:36.8]} 28... Rg8 {[%clk
0:00:14.7]} 29. Rxd7+ {[%clk 0:00:35.9]} 29... Kb6 {[%clk 0:00:15.3]} 30. g3
{[%clk 0:00:30.9]} 30... h4 {[%clk 0:00:14.8]} 31. fxe6 {[%clk 0:00:30.4]} 31...
Be4 {[%clk 0:00:12.3]} 32. Rd4 {[%clk 0:00:28.2]} 32... Ba8 {[%clk 0:00:10.6]}
33. Rxb4+ {[%clk 0:00:26.2]} 33... Ka5 {[%clk 0:00:10.7]} 34. Rxh4 {[%clk
0:00:26]} 34... Re8 {[%clk 0:00:10]} 35. Ra4+ {[%clk 0:00:18.9]} 35... Kb5
{[%clk 0:00:10.4]} 36. Rac4 {[%clk 0:00:15.9]} 36... Rxe6 {[%clk 0:00:09.6]} 37.
Rc5+ {[%clk 0:00:16.6]} 37... Kb6 {[%clk 0:00:08]} 38. g4 {[%clk 0:00:17]} 38...
Be4 {[%clk 0:00:06]} 39. Kf2 {[%clk 0:00:16.8]} 39... Rh6 {[%clk 0:00:05.3]} 40.
Kg3 {[%clk 0:00:16.8]} 40... a5 {[%clk 0:00:05.5]} 41. h4 {[%clk 0:00:16.5]}
41... Bb7 {[%clk 0:00:04.7]} 42. h5 {[%clk 0:00:16.5]} 42... Rh8 {[%clk
0:00:04.6]} 43. Kh4 {[%clk 0:00:16.7]} 43... Bf3 {[%clk 0:00:03.6]} 44. Rc6+
{[%clk 0:00:16.7]} 44... Bxc6 {[%clk 0:00:03]} 45. g5 {[%clk 0:00:16.6]} 45...
Re8 {[%clk 0:00:03.2]} 46. Re1 {[%clk 0:00:15.8]} 46... Re6 {[%clk 0:00:02.7]}
47. g6 {[%clk 0:00:15.9]} 47... Be8 {[%clk 0:00:01.4]} 48. Kg5 {[%clk
0:00:16.2]} 48... Kc5 {[%clk 0:00:02]} 49. Kf5 {[%clk 0:00:16.2]} 49... Bd7
{[%clk 0:00:01.6]} 50. Rc1+ {[%clk 0:00:16.4]} 50... Kd4 {[%clk 0:00:01.1]} 51.
Rd1+ {[%clk 0:00:16.6]} 51... Kc5 {[%clk 0:00:01.5]} 52. Rxd7 {[%clk 0:00:16.7]}
52... Re8 {[%clk 0:00:02.4]} 53. g7 {[%clk 0:00:16]} 53... Rf8+ {[%clk 0:00:03]}
54. gxf8=Q+ {[%clk 0:00:15.9]} 1-0